bitfinex-derivatives/quotes_ETHF0:USTF0_20210107
["timestamp","ask_amount","ask_price","bid_price","bid_amount"]
[1610027051180,19.1616,1214.2,1212.8,4.00959]
[1610027052884,4.00959,1212.9,1212.8,4.00959]
[1610027053484,49.1616,1214.2,1212.8,4.00959]
[1610027053985,19.1616,1214.2,1212.8,4.00959]
[1610027054885,19.1616,1214.2,1213.1,4.00959]
[1610027055289,10.387,1214.2,1213.3,47.8778]
[1610027056586,10.387,1214.2,1213.1,4.00959]
[1610027056986,10.387,1214.2,1214.1,4.00959]
[1610027057187,6.912,1214.2,1214.1,4.00959]
[1610027057386,6.912,1214.2,1214.1,51.62939]
[1610027058988,10.92159,1214.2,1214.1,51.62939]
[1610027059188,10.92159,1214.2,1214.1,4.00959]
[1610027060589,10.92159,1214.2,1214.1,65.43489]
[1610027060889,6.912,1214.2,1214.1,65.43489]
[1610027061490,6.912,1214.2,1214.1,4.00959]
[1610027063091,10.92159,1214.2,1214.1,4.00959]
[1610027065694,10.92159,1214.2,1213.7,67.2437]
[1610027066996,10.92159,1214.2,1213.9,4.00959]
[1610027068997,4.00959,1214.0,1213.9,4.00959]
[1610027069600,4.00959,1214.0,1213.1,55.0009]
[1610027070998,4.00959,1213.2,1213.1,55.0009]
[1610027071600,70.5718,1214.2,1213.1,55.0009]
[1610027073002,4.00959,1213.5,1213.3,4.00959]
[1610027075003,4.00959,1213.5,1213.4,58.7125]
[1610027075205,10.387,1214.2,1213.4,58.7125]
[1610027077008,4.00959,1214.0,1213.7,4.00959]
[1610027078510,4.00959,1214.0,1213.8,8.1853]
[1610027078712,4.00959,1214.0,1213.7,4.00959]
[1610027079112,4.00959,1214.0,1213.9,4.00959]
[1610027079912,6.912,1214.2,1213.9,4.00959]
[1610027080113,6.912,1214.2,1214.1,53.5951]
[1610027081016,6.912,1214.2,1214.1,57.60469]
[1610027086821,6.912,1214.2,1214.1,53.5951]
[1610027087521,6.912,1214.2,1212.6,6.1836]
[1610027087723,10.387,1214.2,1212.7,59.336]
[1610027089222,4.00959,1213.8,1213.5,4.00959]
[1610027091026,10.387,1214.2,1213.5,4.00959]
[1610027091226,4.00959,1213.7,1213.5,4.00959]
[1610027091728,59.3406,1213.7,1213.5,4.00959]
[1610027091927,59.3406,1213.7,1212.7,56.7868]
[1610027092326,40.387,1214.2,1211.9,5.7274]
[1610027092527,51.7096,1213.4,1212.1,66.5397]
[1610027092727,55.1846,1213.4,1212.1,66.5397]
[1610027093127,55.1846,1213.4,1212.9,4.00959]
[1610027094028,3.475,1213.4,1212.9,4.00959]
[1610027094227,77.7459,1214.2,1212.9,4.00959]
[1610027095027,30.0,1214.1,1212.9,11.26959]
[1610027095227,4.00959,1213.6,1212.9,11.26959]
[1610027095628,30.0,1214.1,1212.9,11.26959]
[1610027095828,77.7459,1214.2,1212.9,11.26959]
[1610027097230,4.00959,1213.6,1213.4,4.00959]
[1610027097432,77.7459,1214.2,1213.4,4.00959]
[1610027098034,10.387,1214.2,1213.4,4.00959]
[1610027099132,4.00959,1213.5,1213.4,4.00959]
[1610027099333,4.00959,1213.5,1211.9,5.7274]
[1610027099533,4.00959,1213.5,1212.9,59.1297]
[1610027101033,4.00959,1213.5,1211.9,5.7274]
[1610027101233,4.00959,1213.1,1212.9,4.00959]
[1610027103639,4.00959,1213.1,1212.5,47.2812]
[1610027104039,9.00959,1213.1,1212.5,47.2812]
[1610027105142,5.0,1213.1,1212.7,4.00959]
[1610027107242,4.00959,1212.8,1212.5,47.2812]
[1610027107845,4.00959,1212.8,1211.3,6.0469]
[1610027108243,4.00959,1212.8,1211.5,61.3352]
[1610027109143,8.475,1213.1,1212.5,4.00959]
[1610027109343,5.0,1213.1,1212.5,4.00959]
[1610027110243,5.0,1213.1,1211.5,61.3352]
[1610027110445,8.475,1213.1,1211.5,61.3352]
[1610027110745,8.4559133,1213.1,1211.5,61.3352]
[1610027111146,4.00959,1212.3,1212.0,4.00959]
[1610027112447,8.4559133,1213.1,1212.0,4.00959]
[1610027113248,8.4559133,1213.1,1212.4,4.00959]
[1610027113448,4.9809133,1213.1,1212.4,4.00959]
[1610027114849,4.9809133,1213.1,1212.1,48.1936]
[1610027115152,4.9809133,1213.1,1212.2,4.00959]
[1610027116952,12.6486133,1213.1,1212.2,4.00959]
[1610027117153,4.00959,1212.3,1211.9,4.00959]
[1610027120360,49.4798,1212.8,1211.9,4.00959]
[1610027120563,8.4559133,1213.1,1211.9,60.17949]
[1610027120863,17.5734133,1213.1,1211.9,60.17949]
[1610027121261,4.00959,1212.0,1211.9,4.00959]
[1610027124261,67.5046,1212.8,1211.9,4.00959]
[1610027124461,57.5046,1212.8,1211.9,4.00959]
[1610027125263,57.5046,1212.8,1212.1,4.00959]
[1610027126763,15.3679133,1213.1,1212.1,4.00959]
[1610027126964,11.8929133,1213.1,1212.1,4.00959]
[1610027127265,4.00959,1212.2,1212.1,4.00959]
[1610027140382,4.00959,1212.2,1211.6,48.2958]
[1610027141382,57.393,1212.7,1211.8,4.00959]
[1610027143383,4.00959,1211.9,1211.8,4.00959]
[1610027144483,4.00959,1211.9,1211.6,48.2958]
[1610027144684,4.00959,1211.9,1210.5,12.0403]
[1610027144885,7.48459,1211.9,1210.9,53.9376]
[1610027145485,3.475,1211.9,1211.5,4.00959]
[1610027146785,3.475,1211.9,1210.9,53.9376]
[1610027147485,3.475,1211.9,1211.2,4.00959]
[1610027148690,15.3679133,1213.1,1211.5,64.4501]
[1610027149490,4.00959,1211.6,1211.5,64.4501]
[1610027149690,4.00959,1211.6,1211.2,4.00959]
[1610027151490,4.00959,1211.6,1211.5,4.00959]
[1610027152791,63.4148,1212.4,1211.5,4.00959]
[1610027153493,4.00959,1211.6,1211.5,4.00959]
[1610027163401,66.8898,1212.4,1211.5,4.00959]
[1610027163602,4.00959,1212.1,1212.0,4.00959]
[1610027164802,4.00959,1212.1,1212.0,72.31519]
[1610027165202,4.00959,1212.1,1212.0,4.00959]
[1610027165402,4.00959,1212.1,1212.0,59.54069]
[1610027165803,15.3679133,1213.1,1212.0,59.54069]
[1610027167803,4.00959,1212.8,1212.6,13.60549]
[1610027169307,4.00959,1212.8,1212.6,4.00959]
[1610027169507,4.00959,1212.8,1212.7,49.5324]
[1610027171910,11.8929133,1213.1,1212.7,49.5324]
[1610027173710,4.00959,1212.9,1212.7,49.5324]
[1610027175417,4.00959,1212.9,1212.6,4.00959]
[1610027175812,4.00959,1212.7,1212.6,4.00959]
[1610027176513,4.00959,1212.7,1212.3,60.2022]
[1610027178673,4.00959,1212.4,1212.3,64.21179]
[1610027178676,15.3679133,1213.1,1212.3,64.21179]
[1610027179819,4.00959,1212.7,1212.5,4.00959]
[1610027181225,15.3679133,1213.1,1212.5,4.00959]
[1610027181419,11.8929133,1213.1,1212.5,4.00959]
[1610027181621,11.8929133,1213.1,1212.7,59.5264]
[1610027181821,11.8929133,1213.1,1212.9,4.00959]
[1610027182923,11.8929133,1213.1,1212.7,59.5264]
[1610027183122,11.8929133,1213.1,1210.6,6.1691]
[1610027183323,15.3679133,1213.1,1212.5,47.9969]
[1610027183524,11.8929133,1213.1,1212.5,47.9969]
[1610027183923,11.8929133,1213.1,1212.9,4.00959]
[1610027184123,11.8929133,1213.1,1212.9,71.86129]
[1610027185524,4.9809133,1213.1,1212.9,71.86129]
[1610027190731,4.9809133,1213.1,1212.9,4.00959]
[1610027193730,4.9809133,1213.1,1212.9,61.39989]
[1610027207449,4.9809133,1213.1,1212.9,4.00959]
[1610027213959,8.9905033,1213.1,1212.9,4.00959]
[1610027214360,4.9809133,1213.1,1212.9,4.00959]
[1610027214960,4.9809133,1213.1,1212.9,61.14299]
[1610027215161,4.9809133,1213.1,1212.9,4.00959]
[1610027218064,8.9905033,1213.1,1212.9,4.00959]
[1610027218464,4.9809133,1213.1,1212.9,4.00959]
[1610027219766,4.9809133,1213.1,1212.9,10.78959]
[1610027227875,4.9809133,1213.1,1212.9,4.00959]
[1610027228075,4.00959,1213.0,1212.9,4.00959]
[1610027228673,4.9809133,1213.1,1212.9,4.00959]
[1610027229274,4.9809133,1213.1,1212.5,60.421]
[1610027230077,4.00959,1212.8,1212.5,60.421]
[1610027230278,4.00959,1212.8,1211.7,5.7672]
[1610027230479,7.48459,1212.8,1211.6,47.7406]
[1610027232081,3.475,1212.8,1211.9,4.00959]
[1610027234083,4.00959,1212.3,1211.9,4.00959]
[1610027235090,3.475,1212.8,1211.9,4.00959]
[1610027235286,3.475,1212.8,1211.9,13.38229]
[1610027236187,4.00959,1212.5,1212.3,4.00959]
[1610027243698,4.00959,1212.5,1211.9,9.3727]
[1610027244100,3.475,1212.8,1212.0,4.00959]
[1610027246101,4.00959,1212.4,1212.2,4.00959]
[1610027247704,4.00959,1212.4,1211.9,9.3727]
[1610027248304,3.475,1212.8,1212.0,4.00959]
[1610027248704,3.475,1212.8,1211.9,9.3727]
[1610027250205,4.00959,1212.0,1211.9,9.3727]
[1610027250909,3.475,1212.8,1211.9,9.3727]
[1610027252209,3.475,1212.8,1212.0,4.00959]
[1610027254311,4.00959,1212.3,1212.0,4.00959]
[1610027255012,3.475,1212.8,1212.0,4.00959]
[1610027256318,4.00959,1212.5,1211.9,9.3727]
[1610027258017,3.475,1212.8,1210.7,6.0332]
[1610027258217,3.475,1212.8,1212.7,4.00959]
[1610027260220,7.48459,1212.8,1212.7,4.00959]
[1610027261924,7.48459,1212.8,1210.7,6.0332]
[1610027262320,4.00959,1212.5,1212.4,4.00959]
[1610027264023,3.475,1212.8,1212.4,4.00959]
[1610027264325,4.00959,1212.7,1212.4,4.00959]
[1610027266326,4.00959,1212.5,1212.4,4.00959]
[1610027266927,4.00959,1212.5,1212.2,52.8765]
[1610027267127,4.00959,1212.5,1210.7,12.1331]
[1610027267329,4.00959,1212.5,1211.4,55.7819]
[1610027268428,3.475,1212.8,1212.1,4.00959]
[1610027268628,3.475,1212.8,1212.2,59.8903]
[1610027270530,4.00959,1212.3,1212.2,59.8903]
[1610027270730,4.00959,1212.3,1212.1,4.00959]
[1610027271130,4.00959,1212.3,1211.7,62.4927]
[1610027272433,3.475,1212.8,1211.9,4.00959]
[1610027274536,4.00959,1212.0,1211.9,4.00959]
[1610027274740,4.00959,1212.0,1211.7,62.4927]
[1610027274939,4.00959,1212.0,1210.7,6.0332]
[1610027275137,7.48459,1212.0,1211.3,46.0836]
[1610027276438,3.475,1212.0,1211.6,4.00959]
[1610027278439,4.00959,1211.7,1211.6,4.00959]
[1610027282442,4.00959,1211.7,1211.3,4.00959]
[1610027282843,62.5459,1211.6,1210.7,6.0332]
[1610027283043,62.5459,1211.6,1210.6,67.7027]
[1610027283645,37.48459,1211.7,1209.3,5.8779]
[1610027283846,48.1985,1211.2,1209.9,50.6549]
[1610027284446,48.1985,1211.2,1210.1,4.00959]
[1610027284847,48.1985,1211.2,1209.9,50.6549]
[1610027285045,3.475,1211.7,1209.3,5.8779]
[1610027285248,65.9928,1211.6,1209.3,70.0679]
[1610027286047,65.9928,1211.6,1209.3,64.19]
[1610027286646,65.9928,1211.6,1209.9,4.00959]
[1610027288548,4.00959,1210.3,1209.9,4.00959]
[1610027288748,4.00959,1210.3,1208.5,5.8844]
[1610027289148,57.1031,1210.1,1208.5,5.8844]
[1610027290549,57.1031,1210.1,1208.9,4.00959]
[1610027291748,57.1031,1210.1,1208.5,5.8844]
[1610027291950,30.0,1211.1,1207.5,5.7656]
[1610027292149,61.2502,1209.6,1208.0,50.371]
[1610027292349,30.0,1210.4,1207.6,6.1368]
[1610027292549,4.00959,1208.1,1208.0,4.00959]
[1610027294250,61.0398,1209.4,1208.0,4.00959]
[1610027294652,4.00959,1208.3,1208.0,4.00959]
[1610027295754,4.00959,1208.3,1207.5,62.6944]
[1610027295953,4.00959,1208.3,1206.2,5.9268]
[1610027296153,4.00959,1208.3,1206.5,68.7392]
[1610027296554,53.1484,1208.4,1207.5,4.00959]
[1610027296754,2.3514,1208.9,1207.5,4.00959]
[1610027298355,67.0494,1208.5,1207.5,4.00959]
[1610027298554,67.0494,1208.5,1207.8,4.00959]
[1610027298954,67.0494,1208.5,1206.8,56.8279]
[1610027299156,58.4206,1208.6,1206.6,69.1646]
[1610027300558,4.00959,1207.2,1207.1,4.00959]
[1610027300757,2.3514,1208.9,1207.1,4.00959]
[1610027301157,56.7518,1208.8,1207.1,4.00959]
[1610027302559,4.00959,1207.4,1207.1,4.00959]
[1610027304561,53.2971,1208.1,1207.1,4.00959]
[1610027304961,3.178,1208.9,1207.1,4.00959]
[1610027305161,3.178,1208.9,1207.1,56.79689]
[1610027305561,5.8613,1209.2,1207.1,56.79689]
[1610027306662,5.8613,1209.2,1207.8,4.00959]
[1610027307966,5.8613,1209.2,1207.1,52.7873]
[1610027308667,4.00959,1208.1,1207.8,4.00959]
[1610027309064,5.8613,1209.2,1207.8,4.00959]
[1610027309265,5.8613,1209.2,1206.2,5.9268]
[1610027309465,5.8613,1209.2,1206.9,50.2021]
[1610027309865,14.934,1209.2,1206.9,50.2021]
[1610027310565,4.00959,1207.8,1207.5,4.00959]
[1610027310765,4.00959,1207.8,1206.9,50.2021]
[1610027310965,4.00959,1207.8,1206.2,5.9268]
[1610027312566,4.00959,1207.4,1207.2,4.00959]
[1610027313166,61.737,1208.4,1207.2,4.00959]
[1610027313367,2.3487,1208.6,1207.2,4.00959]
[1610027314167,3.475,1208.6,1207.2,4.00959]
[1610027314667,4.00959,1208.2,1207.5,4.00959]
[1610027314968,4.00959,1208.2,1205.7,5.8945]
[1610027315168,4.00959,1208.2,1206.5,62.4098]
[1610027316670,4.00959,1207.6,1207.4,4.00959]
[1610027317271,3.475,1208.6,1207.4,4.00959]
[1610027317471,3.475,1208.6,1207.0,50.2744]
[1610027318572,4.00959,1207.4,1207.3,4.00959]
[1610027318971,3.475,1208.6,1207.3,4.00959]
[1610027320573,4.00959,1207.7,1207.3,4.00959]
[1610027322278,3.475,1208.6,1207.3,4.00959]
[1610027322579,4.00959,1208.1,1207.9,4.00959]
[1610027322780,3.475,1208.6,1207.9,4.00959]
[1610027323179,3.475,1208.6,1207.9,53.82799]
[1610027324681,3.475,1208.6,1208.5,4.00959]
[1610027326582,3.475,1208.6,1207.9,49.8184]
[1610027328685,4.00959,1208.5,1207.9,49.8184]
[1610027328884,4.00959,1208.5,1206.5,5.9117]
[1610027329086,10.92159,1208.5,1206.8,54.0824]
[1610027330687,4.00959,1208.2,1208.1,4.00959]
[1610027331190,6.912,1208.5,1208.1,4.00959]
[1610027331393,6.912,1208.5,1206.8,54.0824]
[1610027331589,10.387,1208.5,1206.8,54.0824]
[1610027332692,10.387,1208.5,1207.8,4.00959]
[1610027332893,6.912,1208.5,1207.8,4.00959]
[1610027334094,6.912,1208.5,1206.8,54.0824]
[1610027334293,10.387,1208.5,1206.8,54.0824]
[1610027334695,10.387,1208.5,1207.4,4.00959]
[1610027335193,6.912,1208.5,1207.4,4.00959]
[1610027336695,4.00959,1208.2,1207.8,4.00959]
[1610027337097,3.9905033,1208.2,1207.8,4.00959]
[1610027338099,3.9905033,1208.2,1206.8,54.0824]
[1610027338298,7.4655033,1208.2,1206.5,5.9117]
[1610027338698,3.475,1208.2,1207.5,4.00959]
[1610027339098,6.912,1208.5,1207.5,4.00959]
[1610027340699,4.00959,1208.2,1208.0,4.00959]
[1610027341503,4.00959,1208.2,1206.5,5.9117]
[1610027342505,7.48459,1208.2,1206.5,5.9117]
[1610027342706,3.475,1208.2,1207.8,4.00959]
[1610027344308,6.912,1208.5,1206.5,5.9117]
[1610027344709,6.912,1208.5,1207.6,4.00959]
[1610027346714,4.00959,1207.7,1207.6,4.00959]
[1610027347116,6.912,1208.5,1207.6,4.00959]
[1610027348717,4.00959,1208.0,1207.6,4.00959]
[1610027350818,4.00959,1207.7,1207.6,4.00959]
[1610027351720,4.00959,1207.7,1206.3,55.296]
[1610027351921,7.48459,1207.7,1205.3,6.0908]
[1610027352122,7.48459,1207.7,1206.1,58.934]
[1610027352722,3.475,1207.7,1207.1,4.00959]
[1610027354126,3.475,1207.7,1206.8,50.2639]
[1610027354724,4.00959,1206.9,1206.8,50.2639]
[1610027354924,4.00959,1206.9,1206.7,4.00959]
[1610027357224,2.3388,1207.5,1206.7,4.00959]
[1610027357925,3.475,1207.7,1206.7,4.00959]
[1610027358829,4.00959,1207.2,1206.9,4.00959]
[1610027360629,3.475,1207.7,1206.9,4.00959]
[1610027360830,4.00959,1207.3,1206.9,4.00959]
[1610027362834,4.00959,1207.0,1206.9,4.00959]
[1610027363632,3.475,1207.7,1206.9,4.00959]
[1610027366835,3.475,1207.7,1207.3,4.00959]
[1610027367035,3.475,1207.7,1206.6,68.6792]
[1610027368838,4.00959,1207.4,1207.2,4.00959]
[1610027370440,3.475,1207.7,1207.2,4.00959]
[1610027370844,7.48459,1207.7,1207.6,4.00959]
[1610027371446,3.475,1207.7,1207.6,4.00959]
[1610027373944,3.475,1207.7,1207.0,65.8678]
[1610027374145,3.475,1207.7,1205.9,12.2537]
[1610027374545,3.475,1207.7,1205.9,6.1357]
[1610027374858,3.475,1207.7,1206.9,4.00959]
[1610027375455,3.475,1207.7,1206.3,58.2184]
[1610027376846,3.475,1207.7,1206.6,4.00959]
[1610027377449,33.475,1207.7,1206.6,4.00959]
[1610027378449,3.475,1207.7,1206.6,4.00959]
[1610027378848,4.00959,1206.7,1206.6,4.00959]
[1610027379550,3.475,1207.7,1206.6,4.00959]
[1610027380849,4.00959,1206.9,1206.6,4.00959]
[1610027381050,4.00959,1206.9,1205.0,5.8034]
[1610027381249,4.00959,1206.9,1205.5,50.8078]
[1610027382952,85.6063,1207.3,1206.1,4.00959]
[1610027383151,6.912,1207.3,1206.1,4.00959]
[1610027384954,6.912,1207.3,1206.5,4.00959]
[1610027386054,6.912,1207.3,1205.8,54.5884]
[1610027386555,6.912,1207.3,1205.0,5.8034]
[1610027386955,9.367,1207.3,1206.1,4.00959]
[1610027387656,9.367,1207.3,1205.0,5.8034]
[1610027388856,9.367,1207.3,1205.6,4.00959]
[1610027389559,48.8819,1207.3,1205.6,4.00959]
[1610027390159,48.8819,1207.3,1204.8,57.3452]
[1610027390559,39.367,1207.3,1203.7,6.0743]
[1610027390759,48.9083,1206.7,1203.7,6.0743]
[1610027390964,82.3833,1206.7,1205.4,4.00959]
[1610027391160,82.3833,1206.7,1203.7,6.0743]
[1610027392863,82.3833,1206.7,1204.8,4.00959]
[1610027393764,82.3833,1206.7,1203.7,6.0743]
[1610027394167,35.5502,1206.7,1203.5,1.0]
[1610027394365,30.0,1205.6,1203.5,1.0]
[1610027394565,58.5539,1205.3,1203.5,1.0]
[1610027394767,64.1532,1205.3,1203.5,1.0]
[1610027394969,4.00959,1204.4,1203.5,1.0]
[1610027395366,64.1532,1205.3,1203.5,1.0]
[1610027396668,6.1422,1206.3,1203.5,1.0]
[1610027396867,4.00959,1205.7,1205.4,4.00959]
[1610027397270,4.00959,1205.7,1204.2,55.4454]
[1610027397671,4.00959,1205.7,1203.5,1.0]
[1610027397873,7.48459,1205.7,1203.5,1.0]
[1610027398971,4.00959,1204.6,1203.5,1.0]
[1610027400775,3.475,1205.7,1203.5,1.0]
[1610027400976,3.475,1205.7,1205.1,4.00959]
[1610027402883,3.475,1205.7,1205.6,4.00959]
[1610027403982,3.475,1207.0,1205.6,4.00959]
[1610027404985,4.00959,1206.4,1205.9,4.00959]
[1610027406883,4.00959,1206.0,1205.9,4.00959]
[1610027407082,3.475,1207.0,1205.9,4.00959]
[1610027408984,3.475,1207.0,1206.4,4.00959]
[1610027410085,3.475,1207.0,1205.8,52.1302]
[1610027410988,4.00959,1206.3,1206.1,4.00959]
[1610027411687,3.475,1207.0,1206.1,4.00959]
[1610027412788,3.475,1207.0,1206.4,58.7449]
[1610027412988,3.475,1207.0,1206.9,4.00959]
[1610027413388,6.912,1207.3,1206.9,4.00959]
[1610027413789,13.705,1207.9,1206.9,4.00959]
[1610027414988,4.00959,1207.3,1207.1,4.00959]
[1610027417892,4.00959,1207.3,1204.3,6.1596]
[1610027418092,4.00959,1207.3,1204.5,66.6037]
[1610027418493,10.92159,1207.3,1204.5,66.6037]
[1610027419094,4.00959,1206.4,1204.5,66.6037]
[1610027419294,7.48459,1206.4,1204.5,66.6037]
[1610027421000,4.00959,1205.8,1205.4,4.00959]
[1610027421198,3.475,1206.4,1205.4,4.00959]
[1610027421397,3.475,1206.4,1205.4,12.82479]
[1610027421997,3.475,1206.4,1205.4,4.00959]
[1610027422998,3.475,1206.4,1205.7,4.00959]
[1610027423200,3.475,1206.4,1205.3,53.578]
[1610027425099,4.00959,1205.9,1205.3,57.58759]
[1610027427102,3.475,1206.4,1205.8,4.00959]
[1610027428104,3.475,1206.4,1205.8,11.34099]
[1610027428504,10.387,1207.3,1205.8,11.34099]
[1610027429105,10.387,1207.3,1206.7,4.00959]
[1610027431007,4.00959,1206.9,1206.7,4.00959]
[1610027431708,4.00959,1206.9,1206.2,58.482]
[1610027433109,10.387,1207.3,1206.4,4.00959]
[1610027433309,10.387,1207.3,1206.2,58.482]
[1610027435009,4.00959,1206.3,1206.2,58.482]
[1610027435412,2.097,1207.1,1206.2,58.482]
[1610027436413,10.387,1207.3,1206.2,58.482]
[1610027437013,4.00959,1206.7,1206.4,4.00959]
[1610027437314,10.387,1207.3,1206.4,4.00959]
[1610027439015,4.00959,1206.9,1206.8,4.00959]
[1610027445021,10.387,1207.3,1206.8,4.00959]
[1610027446723,10.387,1207.3,1206.2,58.482]
[1610027447122,4.00959,1207.1,1206.4,4.00959]
[1610027449626,10.387,1207.3,1206.4,4.00959]
[1610027451129,10.387,1207.3,1206.7,4.00959]
[1610027452429,10.387,1207.3,1206.2,58.482]
[1610027453130,4.00959,1206.9,1206.5,4.00959]
[1610027454031,4.00959,1206.9,1206.6,8.3655]
[1610027454232,10.387,1207.3,1206.5,4.00959]
[1610027454429,10.387,1207.3,1206.6,54.0639]
[1610027455129,4.00959,1207.1,1206.7,4.00959]
[1610027457131,4.00959,1206.8,1206.7,4.00959]
[1610027457832,4.00959,1206.8,1206.6,54.0639]
[1610027461139,4.00959,1206.8,1206.7,4.00959]
[1610027461736,10.387,1207.3,1206.7,4.00959]
[1610027463137,4.00959,1207.1,1206.7,4.00959]
[1610027465139,4.00959,1206.8,1206.7,4.00959]
[1610027467839,4.00959,1206.8,1206.6,54.0639]
[1610027469144,4.00959,1206.8,1206.7,4.00959]
[1610027469546,4.00959,1206.8,1206.6,54.0639]
[1610027474350,4.00959,1206.8,1205.0,6.1609]
[1610027474551,4.00959,1206.8,1205.8,60.3348]
[1610027475252,10.387,1207.3,1206.0,4.00959]
[1610027477152,4.00959,1206.1,1206.0,4.00959]
[1610027478057,4.00959,1206.1,1205.8,60.3348]
[1610027479156,12.7507,1207.3,1205.8,60.3348]
[1610027480861,10.387,1207.3,1205.8,60.3348]
[1610027481260,4.00959,1206.4,1205.9,4.00959]
[1610027482258,4.00959,1206.4,1205.1,68.088]
[1610027482458,7.48459,1206.4,1205.1,68.088]
[1610027483358,4.00959,1205.9,1205.4,4.00959]
[1610027484558,3.475,1206.4,1205.4,4.00959]
[1610027484960,10.387,1207.3,1205.4,59.51639]
[1610027485261,4.00959,1206.3,1205.9,4.00959]
[1610027485662,10.387,1207.3,1205.9,12.36239]
[1610027487264,4.00959,1206.3,1205.9,12.36239]
[1610027487564,10.387,1207.3,1205.9,12.36239]
[1610027488665,10.387,1207.3,1205.9,8.3528]
[1610027489367,4.00959,1206.3,1205.9,8.3528]
[1610027491271,4.00959,1206.0,1205.9,8.3528]
[1610027491469,10.387,1207.3,1205.9,8.3528]
[1610027493372,4.00959,1206.2,1205.9,8.3528]
[1610027495375,4.00959,1206.2,1206.0,4.00959]
[1610027496278,10.387,1207.3,1206.0,4.00959]
[1610027496676,10.387,1207.3,1206.2,55.3077]
[1610027497278,4.00959,1206.7,1206.5,4.00959]
[1610027497478,10.387,1207.3,1206.5,4.00959]
[1610027498981,10.387,1207.3,1206.5,12.21019]
[1610027499281,4.00959,1206.8,1206.7,4.00959]
[1610027499781,10.387,1207.3,1206.7,4.00959]
[1610027501285,4.00959,1207.1,1207.0,4.00959]
[1610027501883,10.387,1207.3,1207.0,4.00959]
[1610027502085,3.475,1207.3,1207.1,49.8427]
[1610027502282,10.23,1207.9,1207.1,49.8427]
[1610027503384,10.23,1207.9,1207.8,4.00959]
[1610027503785,10.23,1207.9,1207.8,56.07139]
[1610027504185,5.1219,1207.9,1207.8,56.07139]
[1610027504385,48.6744,1210.0,1207.8,56.07139]
[1610027504585,59.0614,1210.0,1207.8,56.07139]
[1610027505385,59.0614,1210.0,1208.3,4.00959]
[1610027505586,52.1494,1210.0,1207.8,52.0618]
[1610027505785,59.0614,1210.0,1207.8,52.0618]
[1610027505986,61.2568,1210.0,1207.8,52.0618]
[1610027507387,4.00959,1208.2,1208.0,4.00959]
[1610027507788,61.2568,1210.0,1208.0,4.00959]
[1610027508990,12.5824,1210.0,1208.0,4.00959]
[1610027509189,12.5824,1210.0,1208.4,46.4062]
[1610027509391,12.5824,1210.0,1208.8,4.00959]
[1610027509590,9.1074,1210.0,1208.8,4.00959]
[1610027509789,6.912,1210.0,1208.8,4.00959]
[1610027511391,4.00959,1208.9,1208.5,4.00959]
[1610027511793,4.00959,1208.9,1207.8,56.1246]
[1610027513393,4.00959,1208.9,1208.3,4.00959]
[1610027513593,4.00959,1208.6,1208.3,4.00959]
[1610027513795,4.00959,1208.6,1208.3,59.24779]
[1610027515495,4.00959,1208.4,1208.3,55.2382]
[1610027515897,10.23,1209.6,1208.3,55.2382]
[1610027517399,4.00959,1208.8,1208.3,59.24779]
[1610027519499,4.00959,1208.8,1208.7,4.00959]
[1610027520300,4.00959,1208.8,1208.3,55.2382]
[1610027521501,4.00959,1209.0,1208.7,4.00959]
[1610027522101,4.00959,1209.0,1208.3,55.2382]
[1610027523405,4.00959,1208.4,1208.3,55.2382]
[1610027523605,4.00959,1208.4,1208.1,4.00959]
[1610027523807,4.00959,1208.4,1207.1,5.7842]
[1610027524007,7.48459,1208.4,1207.8,48.0631]
[1610027524208,4.00959,1208.4,1207.8,48.0631]
[1610027525208,13.705,1209.6,1207.8,48.0631]
[1610027525409,4.00959,1208.7,1208.5,4.00959]
[1610027526010,4.00959,1208.7,1208.3,57.1009]
[1610027526710,4.00959,1208.7,1207.1,5.7842]
[1610027526911,7.48459,1208.7,1207.1,5.7842]
[1610027527110,7.48459,1208.7,1207.7,64.6196]
[1610027527412,4.00959,1208.7,1207.7,64.6196]
[1610027527613,4.00959,1208.7,1208.6,4.00959]
[1610027528012,13.705,1209.6,1208.6,4.00959]
[1610027528213,13.705,1209.6,1208.9,67.6924]
[1610027529515,4.00959,1209.3,1209.0,4.00959]
[1610027530714,13.705,1209.6,1209.0,4.00959]
[1610027530915,3.475,1209.6,1209.0,4.00959]
[1610027531315,3.475,1209.6,1209.3,48.8586]
[1610027531516,4.00959,1209.6,1209.5,4.00959]
[1610027533319,6.912,1210.0,1209.5,4.00959]
[1610027533518,6.912,1210.0,1209.8,4.00959]
[1610027535522,10.92159,1210.0,1209.8,4.00959]
[1610027535722,3.475,1210.5,1209.8,4.00959]
[1610027535922,3.475,1210.5,1210.4,67.8052]
[1610027536324,6.2589,1213.6,1210.4,67.8052]
[1610027536524,30.0,1213.5,1210.4,67.8052]
[1610027536721,64.916,1213.5,1210.4,67.8052]
[1610027537124,30.0,1213.3,1210.4,67.8052]
[1610027537323,7.3468,1212.5,1210.4,67.8052]
[1610027537522,4.00959,1210.5,1209.8,4.00959]